[Event "Titled Tuesday Blitz June 15 2021"]
[White "Kukhmazov, Arsen"]
[Black "Iskusnyh, Sergei"]
[WhiteFideId "24108260"]
[BlackFideId "4120027"]
[WhiteElo "2453"]
[BlackElo "2492"]
[Result "1-0"]
[Round "06"]
[TimeControl "180+1"]
[Date "2021.06.15"]
[WhiteClock "0:00:05"]
[BlackClock "0:00:03"]

1. d4 {[%clk 0:02:57]}  d5 {[%clk 0:02:58]} 2. c4 {[%clk 0:02:58]}  e6 {[%clk 0:02:58]} 3. Nc3 {[%clk 0:02:43]}  dxc4 {[%clk 0:02:58]} 4. e4 {[%clk 0:02:19]}  c5 {[%clk 0:02:54]} 5. d5 {[%clk 0:02:05]}  Nf6 {[%clk 0:02:54]} 6. Bxc4 {[%clk 0:02:04]}  exd5 {[%clk 0:02:52]} 7. Nxd5 {[%clk 0:01:59]}  Be6 {[%clk 0:02:49]} 8. Bg5 {[%clk 0:01:51]}  Be7 {[%clk 0:02:46]} 9. Nxf6+ {[%clk 0:01:42]}  Bxf6 {[%clk 0:02:38]} 10. Qxd8+ {[%clk 0:01:42]}  Bxd8 {[%clk 0:02:20]} 11. Bxe6 {[%clk 0:01:41]}  fxe6 {[%clk 0:02:04]} 12. Bxd8 {[%clk 0:01:39]}  Kxd8 {[%clk 0:02:04]} 13. O-O-O {[%clk 0:01:29]}  Ke7 {[%clk 0:02:03]} 14. f4 {[%clk 0:01:04]}  Nc6 {[%clk 0:01:44]} 15. Nf3 {[%clk 0:01:04]}  Rad8 {[%clk 0:01:22]} 16. a3 {[%clk 0:00:53]}  Rhf8 {[%clk 0:01:06]} 17. g3 {[%clk 0:00:50]}  e5 {[%clk 0:00:53]} 18. f5 {[%clk 0:00:50]}  g6 {[%clk 0:00:43]} 19. g4 {[%clk 0:00:50]}  gxf5 {[%clk 0:00:42]} 20. exf5 {[%clk 0:00:48]}  Kf6 {[%clk 0:00:32]} 21. Rhe1 {[%clk 0:00:40]}  Rxd1+ {[%clk 0:00:19]} 22. Rxd1 {[%clk 0:00:41]}  Nd4 {[%clk 0:00:18]} 23. Nd2 {[%clk 0:00:37]}  Kg5 {[%clk 0:00:18]} 24. h3 {[%clk 0:00:34]}  Kh4 {[%clk 0:00:18]} 25. Rh1 {[%clk 0:00:23]}  Kg3 {[%clk 0:00:17]} 26. Ne4+ {[%clk 0:00:15]}  Kg2 {[%clk 0:00:17]} 27. Re1 {[%clk 0:00:12]}  Kxh3 {[%clk 0:00:17]} 28. f6 {[%clk 0:00:08]}  Kxg4 {[%clk 0:00:16]} 29. Kb1 {[%clk 0:00:04]}  Kf4 {[%clk 0:00:15]} 30. Nxc5 {[%clk 0:00:04]}  Nf3 {[%clk 0:00:13]} 31. Re4+ {[%clk 0:00:03]}  Kf5 {[%clk 0:00:12]} 32. Re3 {[%clk 0:00:03]}  Ng5 {[%clk 0:00:10]} 33. Nd7 {[%clk 0:00:03]}  Rf7 {[%clk 0:00:09]} 34. Rxe5+ {[%clk 0:00:03]}  Kg6 {[%clk 0:00:09]} 35. Rd5 {[%clk 0:00:02]}  Nf3 {[%clk 0:00:06]} 36. Kc2 {[%clk 0:00:02]}  h5 {[%clk 0:00:05]} 37. Kd1 {[%clk 0:00:02]}  Rh7 {[%clk 0:00:05]} 38. Ke2 {[%clk 0:00:03]}  Ng5 {[%clk 0:00:05]} 39. Nf8+ {[%clk 0:00:03]}  Kxf6 {[%clk 0:00:03]} 40. Nxh7+ {[%clk 0:00:04]}  Nxh7 {[%clk 0:00:03]} 41. Rxh5 {[%clk 0:00:05]} 1-0


[Site "https://www.chess.com"]

[Event "Titled Tuesday Blitz June 15 2021"]
[White "Le, Tuan Minh"]
[Black "Colas, Joshua"]
[WhiteFideId "12401153"]
[BlackFideId "2044447"]
[WhiteElo "2450"]
[BlackElo "2347"]
[Result "0-1"]
[Round "06"]
[TimeControl "180+1"]
[Date "2021.06.15"]
[WhiteClock "0:00:21"]
[BlackClock "0:00:14"]

1. d4 {[%clk 0:03:00]}  d5 {[%clk 0:02:20]} 2. Nf3 {[%clk 0:02:56]}  Nf6 {[%clk 0:02:20]} 3. Bf4 {[%clk 0:02:57]}  e6 {[%clk 0:02:20]} 4. e3 {[%clk 0:02:57]}  Bd6 {[%clk 0:02:21]} 5. Nbd2 {[%clk 0:02:58]}  O-O {[%clk 0:02:20]} 6. c3 {[%clk 0:02:59]}  Bxf4 {[%clk 0:02:21]} 7. exf4 {[%clk 0:02:59]}  b6 {[%clk 0:02:21]} 8. Bd3 {[%clk 0:02:59]}  Ba6 {[%clk 0:02:22]} 9. Bxa6 {[%clk 0:03:00]}  Nxa6 {[%clk 0:02:23]} 10. O-O {[%clk 0:03:01]}  c5 {[%clk 0:02:23]} 11. Re1 {[%clk 0:03:00]}  c4 {[%clk 0:02:22]} 12. Nf1 {[%clk 0:02:59]}  b5 {[%clk 0:02:23]} 13. a3 {[%clk 0:02:58]}  Nc7 {[%clk 0:02:23]} 14. Ne3 {[%clk 0:02:58]}  a5 {[%clk 0:02:19]} 15. f5 {[%clk 0:02:58]}  exf5 {[%clk 0:02:17]} 16. Nxf5 {[%clk 0:02:58]}  Qd7 {[%clk 0:02:13]} 17. Ne3 {[%clk 0:02:53]}  Ra6 {[%clk 0:01:59]} 18. Ne5 {[%clk 0:02:53]}  Qd8 {[%clk 0:01:59]} 19. Qf3 {[%clk 0:02:53]}  Re6 {[%clk 0:01:56]} 20. Nf5 {[%clk 0:02:51]}  g6 {[%clk 0:01:54]} 21. Ne3 {[%clk 0:02:42]}  Kg7 {[%clk 0:01:51]} 22. h3 {[%clk 0:02:39]}  Rfe8 {[%clk 0:01:39]} 23. Re2 {[%clk 0:02:36]}  R8e7 {[%clk 0:01:39]} 24. Qg3 {[%clk 0:02:33]}  Kh8 {[%clk 0:01:06]} 25. Qf4 {[%clk 0:02:30]}  Nh5 {[%clk 0:01:02]} 26. Nxf7+ {[%clk 0:02:28]}  Rxf7 {[%clk 0:00:51]} 27. Qxf7 {[%clk 0:02:29]}  Rf6 {[%clk 0:00:52]} 28. Qxc7 {[%clk 0:02:20]}  Qxc7 {[%clk 0:00:51]} 29. Nxd5 {[%clk 0:02:21]}  Qd6 {[%clk 0:00:46]} 30. Nxf6 {[%clk 0:02:16]}  Qxf6 {[%clk 0:00:47]} 31. g3 {[%clk 0:02:13]}  Ng7 {[%clk 0:00:44]} 32. Rae1 {[%clk 0:02:03]}  h5 {[%clk 0:00:39]} 33. Re5 {[%clk 0:02:03]}  h4 {[%clk 0:00:38]} 34. g4 {[%clk 0:02:03]}  b4 {[%clk 0:00:34]} 35. axb4 {[%clk 0:02:01]}  axb4 {[%clk 0:00:34]} 36. cxb4 {[%clk 0:01:59]}  Qf3 {[%clk 0:00:35]} 37. R1e3 {[%clk 0:01:55]}  Qd1+ {[%clk 0:00:35]} 38. Kg2 {[%clk 0:01:55]}  Qxd4 {[%clk 0:00:35]} 39. Rc5 {[%clk 0:01:52]}  Kh7 {[%clk 0:00:30]} 40. Rc7 {[%clk 0:01:47]}  Kh6 {[%clk 0:00:30]} 41. Ree7 {[%clk 0:01:47]}  Ne6 {[%clk 0:00:29]} 42. Rcd7 {[%clk 0:01:14]}  Qe4+ {[%clk 0:00:29]} 43. Kg1 {[%clk 0:00:59]}  Qb1+ {[%clk 0:00:26]} 44. Kh2 {[%clk 0:00:53]}  Ng5 {[%clk 0:00:25]} 45. Kg2 {[%clk 0:00:39]}  Qxb2 {[%clk 0:00:23]} 46. Rd8 {[%clk 0:00:32]}  Qc3 {[%clk 0:00:16]} 47. Re3 {[%clk 0:00:32]}  Qxb4 {[%clk 0:00:15]} 48. Rh8+ {[%clk 0:00:32]}  Kg7 {[%clk 0:00:16]} 49. Rhe8 {[%clk 0:00:32]}  Qb7+ {[%clk 0:00:16]} 50. Kf1 {[%clk 0:00:29]}  Qh1+ {[%clk 0:00:16]} 51. Ke2 {[%clk 0:00:29]}  Nxh3 {[%clk 0:00:16]} 52. R3e7+ {[%clk 0:00:29]}  Kh6 {[%clk 0:00:17]} 53. Ke3 {[%clk 0:00:25]}  Qe1+ {[%clk 0:00:15]} 54. Kd4 {[%clk 0:00:26]}  Qxf2+ {[%clk 0:00:16]} 55. Kxc4 {[%clk 0:00:26]}  Qf1+ {[%clk 0:00:15]} 56. Kd5 {[%clk 0:00:25]}  Qd1+ {[%clk 0:00:15]} 57. Ke5 {[%clk 0:00:25]}  Qxg4 {[%clk 0:00:15]} 58. Rh8+ {[%clk 0:00:22]}  Kg5 {[%clk 0:00:15]} 59. Rhh7 {[%clk 0:00:23]}  Qe2+ {[%clk 0:00:15]} 60. Kd6 {[%clk 0:00:22]}  Qd3+ {[%clk 0:00:15]} 61. Kc7 {[%clk 0:00:23]}  Nf4 {[%clk 0:00:15]} 62. Rd7 {[%clk 0:00:21]}  Qc4+ {[%clk 0:00:15]} 63. Kd6 {[%clk 0:00:21]}  Qd5+ {[%clk 0:00:15]} 64. Kc7 {[%clk 0:00:21]}  Qc5+ {[%clk 0:00:15]} 65. Kb7 {[%clk 0:00:21]}  h3 {[%clk 0:00:15]} 66. Rc7 {[%clk 0:00:21]}  Qxc7+ {[%clk 0:00:13]} 67. Kxc7 {[%clk 0:00:21]}  Nh5 {[%clk 0:00:14]} 0-1


[Site "https://www.chess.com"]

[Event "Titled Tuesday Blitz June 15 2021"]
[White "Loy, Konstantin"]
[Black "Vazquez, Facundo"]
[WhiteFideId "14122499"]
[BlackFideId "3007669"]
[WhiteElo "2084"]
[BlackElo "1984"]
[Result "0-1"]
[Round "06"]
[TimeControl "180+1"]
[Date "2021.06.15"]
[WhiteClock "0:00:03"]
[BlackClock "0:01:05"]

1. e4 {[%clk 0:02:48]}  c5 {[%clk 0:02:57]} 2. Nf3 {[%clk 0:02:48]}  Nc6 {[%clk 0:02:58]} 3. Nc3 {[%clk 0:02:47]}  Nf6 {[%clk 0:02:57]} 4. d4 {[%clk 0:02:46]}  cxd4 {[%clk 0:02:56]} 5. Nxd4 {[%clk 0:02:47]}  e5 {[%clk 0:02:57]} 6. Ndb5 {[%clk 0:02:47]}  d6 {[%clk 0:02:58]} 7. Bg5 {[%clk 0:02:46]}  a6 {[%clk 0:02:58]} 8. Na3 {[%clk 0:02:46]}  b5 {[%clk 0:02:58]} 9. Nd5 {[%clk 0:02:47]}  Be7 {[%clk 0:02:59]} 10. Bxf6 {[%clk 0:02:47]}  Bxf6 {[%clk 0:02:59]} 11. c4 {[%clk 0:02:48]}  b4 {[%clk 0:02:59]} 12. Nc2 {[%clk 0:02:48]}  O-O {[%clk 0:02:59]} 13. g3 {[%clk 0:02:48]}  Bg5 {[%clk 0:02:59]} 14. Bg2 {[%clk 0:02:48]}  Be6 {[%clk 0:02:59]} 15. O-O {[%clk 0:02:48]}  Rb8 {[%clk 0:02:59]} 16. b3 {[%clk 0:02:48]}  Qd7 {[%clk 0:02:59]} 17. f4 {[%clk 0:02:43]}  Bd8 {[%clk 0:02:56]} 18. Nce3 {[%clk 0:02:27]}  Bxd5 {[%clk 0:02:32]} 19. Nxd5 {[%clk 0:02:15]}  Ne7 {[%clk 0:02:31]} 20. fxe5 {[%clk 0:02:08]}  Nxd5 {[%clk 0:02:31]} 21. Qxd5 {[%clk 0:02:04]}  Qa7+ {[%clk 0:02:30]} 22. Kh1 {[%clk 0:02:02]}  dxe5 {[%clk 0:02:30]} 23. Rad1 {[%clk 0:01:33]}  Bf6 {[%clk 0:02:23]} 24. Qd3 {[%clk 0:00:53]}  Rbd8 {[%clk 0:02:12]} 25. Qe2 {[%clk 0:00:51]}  Rd4 {[%clk 0:02:05]} 26. Rxd4 {[%clk 0:00:44]}  Qxd4 {[%clk 0:02:06]} 27. Rd1 {[%clk 0:00:42]}  Qc3 {[%clk 0:02:02]} 28. Qd3 {[%clk 0:00:36]}  Bg5 {[%clk 0:01:26]} 29. h4 {[%clk 0:00:30]}  Be3 {[%clk 0:01:22]} 30. Kh2 {[%clk 0:00:18]}  Bd4 {[%clk 0:01:19]} 31. Qe2 {[%clk 0:00:17]}  Rd8 {[%clk 0:01:16]} 32. Rd3 {[%clk 0:00:16]}  Qxd3 {[%clk 0:01:15]} 33. Qxd3 {[%clk 0:00:14]}  Bg1+ {[%clk 0:01:15]} 34. Kxg1 {[%clk 0:00:15]}  Rxd3 {[%clk 0:01:15]} 35. Bf1 {[%clk 0:00:09]}  Rd1 {[%clk 0:01:09]} 36. Kf2 {[%clk 0:00:04]}  Rd2+ {[%clk 0:01:04]} 37. Ke3 {[%clk 0:00:04]}  Rxa2 {[%clk 0:01:05]} 38. c5 {[%clk 0:00:05]}  Ra5 {[%clk 0:01:05]} 39. c6 {[%clk 0:00:01]}  Rc5 {[%clk 0:01:04]} 40. Bxa6 {[%clk 0:00:02]}  Rxc6 {[%clk 0:01:05]} 41. Bc4 {[%clk 0:00:02]}  Rc5 {[%clk 0:01:04]} 42. Kd3 {[%clk 0:00:02]}  Kf8 {[%clk 0:01:05]} 43. Ke3 {[%clk 0:00:02]}  Ke7 {[%clk 0:01:05]} 44. Kd3 {[%clk 0:00:02]}  g6 {[%clk 0:01:04]} 45. Ke3 {[%clk 0:00:02]}  f5 {[%clk 0:01:05]} 46. exf5 {[%clk 0:00:02]}  gxf5 {[%clk 0:01:05]} 47. Kd3 {[%clk 0:00:03]}  Kd6 {[%clk 0:01:05]} 48. Ke3 {[%clk 0:00:03]}  Rxc4 {[%clk 0:01:03]} 49. bxc4 {[%clk 0:00:03]}  Kc5 {[%clk 0:01:04]} 50. Kd3 {[%clk 0:00:03]}  e4+ {[%clk 0:01:04]} 51. Ke3 {[%clk 0:00:03]}  Kxc4 {[%clk 0:01:05]} 0-1


[Site "https://www.chess.com"]

[Event "Titled Tuesday Blitz June 15 2021"]
[White "Madaminov, Mukhiddin"]
[Black "Makhmudov, Shukhrat"]
[WhiteFideId "14210703"]
[BlackFideId "14200775"]
[WhiteElo "1747"]
[BlackElo "2135"]
[Result "1-0"]
[Round "06"]
[TimeControl "180+1"]
[Date "2021.06.15"]
[WhiteClock "0:00:42"]
[BlackClock "0:00:04"]

1. e4 {[%clk 0:03:00]}  e5 {[%clk 0:02:54]} 2. Nf3 {[%clk 0:02:59]}  Nc6 {[%clk 0:02:54]} 3. Bb5 {[%clk 0:02:53]}  a6 {[%clk 0:02:54]} 4. Ba4 {[%clk 0:02:53]}  Nf6 {[%clk 0:02:54]} 5. d3 {[%clk 0:02:54]}  b5 {[%clk 0:02:54]} 6. Bb3 {[%clk 0:02:53]}  Be7 {[%clk 0:02:54]} 7. c3 {[%clk 0:02:53]}  d6 {[%clk 0:02:55]} 8. h3 {[%clk 0:02:51]}  Na5 {[%clk 0:02:55]} 9. Bc2 {[%clk 0:02:51]}  c5 {[%clk 0:02:55]} 10. O-O {[%clk 0:02:51]}  Qc7 {[%clk 0:02:56]} 11. d4 {[%clk 0:02:51]}  O-O {[%clk 0:02:51]} 12. Re1 {[%clk 0:02:50]}  cxd4 {[%clk 0:02:46]} 13. cxd4 {[%clk 0:02:50]}  exd4 {[%clk 0:02:47]} 14. Nxd4 {[%clk 0:02:49]}  Rd8 {[%clk 0:02:47]} 15. Nc3 {[%clk 0:02:45]}  Bb7 {[%clk 0:02:36]} 16. Nf5 {[%clk 0:02:41]}  Bf8 {[%clk 0:02:26]} 17. Bg5 {[%clk 0:02:40]}  Rac8 {[%clk 0:01:56]} 18. Bxf6 {[%clk 0:02:36]}  gxf6 {[%clk 0:01:55]} 19. Qg4+ {[%clk 0:02:36]}  Kh8 {[%clk 0:01:55]} 20. Qh4 {[%clk 0:02:37]}  Bg7 {[%clk 0:01:50]} 21. Re3 {[%clk 0:02:14]}  Rg8 {[%clk 0:01:21]} 22. Rg3 {[%clk 0:02:06]}  Qd8 {[%clk 0:01:20]} 23. Nxd6 {[%clk 0:01:55]}  Rc7 {[%clk 0:00:45]} 24. Rd1 {[%clk 0:01:41]}  Rd7 {[%clk 0:00:34]} 25. e5 {[%clk 0:01:36]}  h6 {[%clk 0:00:18]} 26. Bf5 {[%clk 0:00:49]}  Qe7 {[%clk 0:00:07]} 27. Nxf7+ {[%clk 0:00:43]}  Qxf7 {[%clk 0:00:06]} 28. Rxd7 {[%clk 0:00:43]}  Qf8 {[%clk 0:00:04]} 29. Qxh6+ {[%clk 0:00:42]} 1-0


[Site "https://www.chess.com"]

[Event "Titled Tuesday Blitz June 15 2021"]
[White "Martinez Alcantara, Jose Eduardo"]
[Black "Kanyamarala, Tarun"]
[WhiteFideId "3805662"]
[BlackFideId "45004714"]
[WhiteElo "2690"]
[BlackElo "2086"]
[Result "1-0"]
[Round "06"]
[TimeControl "180+1"]
[Date "2021.06.15"]
[WhiteClock "0:01:08"]
[BlackClock "0:00:18"]

1. e4 {[%clk 0:03:00]}  c5 {[%clk 0:02:59]} 2. Nf3 {[%clk 0:02:56]}  Nc6 {[%clk 0:02:58]} 3. Bc4 {[%clk 0:02:54]}  e6 {[%clk 0:02:57]} 4. Nc3 {[%clk 0:02:54]}  Nf6 {[%clk 0:02:56]} 5. d3 {[%clk 0:02:52]}  d5 {[%clk 0:02:55]} 6. Bb5 {[%clk 0:02:52]}  Be7 {[%clk 0:02:51]} 7. O-O {[%clk 0:02:51]}  O-O {[%clk 0:02:49]} 8. Bxc6 {[%clk 0:02:51]}  bxc6 {[%clk 0:02:48]} 9. Qe2 {[%clk 0:02:51]}  Re8 {[%clk 0:02:46]} 10. b3 {[%clk 0:02:48]}  Ba6 {[%clk 0:02:41]} 11. Rd1 {[%clk 0:02:27]}  Nd7 {[%clk 0:02:34]} 12. Na4 {[%clk 0:02:19]}  Nb6 {[%clk 0:02:25]} 13. Nc3 {[%clk 0:02:14]}  Qc7 {[%clk 0:02:06]} 14. e5 {[%clk 0:02:05]}  Nd7 {[%clk 0:01:55]} 15. Bf4 {[%clk 0:02:02]}  Qa5 {[%clk 0:01:46]} 16. Na4 {[%clk 0:01:52]}  Bb5 {[%clk 0:01:41]} 17. Nb2 {[%clk 0:01:44]}  Qc3 {[%clk 0:01:36]} 18. Rab1 {[%clk 0:01:36]}  Qa5 {[%clk 0:01:22]} 19. c4 {[%clk 0:01:35]}  Ba6 {[%clk 0:01:21]} 20. Na4 {[%clk 0:01:30]}  Qc7 {[%clk 0:01:19]} 21. Rbc1 {[%clk 0:01:28]}  Nb6 {[%clk 0:01:16]} 22. Nc3 {[%clk 0:01:27]}  Qd7 {[%clk 0:01:10]} 23. h4 {[%clk 0:01:27]}  Bf8 {[%clk 0:00:55]} 24. h5 {[%clk 0:01:27]}  h6 {[%clk 0:00:56]} 25. Nh2 {[%clk 0:01:24]}  Qd8 {[%clk 0:00:47]} 26. Qg4 {[%clk 0:01:21]}  Kh7 {[%clk 0:00:45]} 27. Qg3 {[%clk 0:01:19]}  Bc8 {[%clk 0:00:42]} 28. Ng4 {[%clk 0:01:19]}  a5 {[%clk 0:00:41]} 29. Bxh6 {[%clk 0:01:16]}  gxh6 {[%clk 0:00:33]} 30. Nf6+ {[%clk 0:01:16]}  Qxf6 {[%clk 0:00:33]} 31. exf6 {[%clk 0:01:17]}  Nd7 {[%clk 0:00:27]} 32. Qf4 {[%clk 0:01:09]}  Bb7 {[%clk 0:00:18]} 33. Re1 {[%clk 0:01:07]}  e5 {[%clk 0:00:18]} 34. Qf5+ {[%clk 0:01:07]}  Kh8 {[%clk 0:00:18]} 35. Qxd7 {[%clk 0:01:08]} 1-0


[Site "https://www.chess.com"]

[Event "Titled Tuesday Blitz June 15 2021"]
[White "Mekhitarian, Krikor Sevag"]
[Black "Alekseenko, Kirill"]
[WhiteFideId "2107660"]
[BlackFideId "4135539"]
[WhiteElo "2598"]
[BlackElo "2580"]
[Result "0-1"]
[Round "06"]
[TimeControl "180+1"]
[Date "2021.06.15"]
[WhiteClock "0:00:11"]
[BlackClock "0:00:10"]

1. e4 {[%clk 0:03:00]}  e5 {[%clk 0:02:59]} 2. Bc4 {[%clk 0:02:57]}  Nf6 {[%clk 0:02:57]} 3. d3 {[%clk 0:02:57]}  Nc6 {[%clk 0:02:58]} 4. Nc3 {[%clk 0:02:57]}  Bc5 {[%clk 0:02:58]} 5. f4 {[%clk 0:02:56]}  d6 {[%clk 0:02:58]} 6. Nf3 {[%clk 0:02:57]}  Ng4 {[%clk 0:02:54]} 7. Ng5 {[%clk 0:02:42]}  exf4 {[%clk 0:02:26]} 8. Bxf7+ {[%clk 0:02:16]}  Kf8 {[%clk 0:02:18]} 9. Bxf4 {[%clk 0:02:10]}  Qf6 {[%clk 0:01:48]} 10. Nd5 {[%clk 0:01:53]}  Qd4 {[%clk 0:01:47]} 11. Qf3 {[%clk 0:01:29]}  Qxb2 {[%clk 0:01:35]} 12. Ne6+ {[%clk 0:01:08]}  Bxe6 {[%clk 0:01:21]} 13. Bxe6 {[%clk 0:01:08]}  Nf6 {[%clk 0:00:33]} 14. Rd1 {[%clk 0:01:04]}  Nd4 {[%clk 0:00:32]} 15. Qh3 {[%clk 0:00:35]}  Qxc2 {[%clk 0:00:32]} 16. Bg4 {[%clk 0:00:29]}  h5 {[%clk 0:00:23]} 17. Bf3 {[%clk 0:00:23]}  Nxd5 {[%clk 0:00:21]} 18. exd5 {[%clk 0:00:23]}  Re8+ {[%clk 0:00:21]} 19. Kf1 {[%clk 0:00:24]}  Kg8 {[%clk 0:00:15]} 20. Qg3 {[%clk 0:00:14]}  Ne2 {[%clk 0:00:11]} 21. Qg6 {[%clk 0:00:11]}  Qxd1# {[%clk 0:00:10]} 0-1


[Site "https://www.chess.com"]

[Event "Titled Tuesday Blitz June 15 2021"]
[White "Mezentsev, Ivan"]
[Black "Drygalov, Sergey"]
[WhiteFideId "13706195"]
[BlackFideId "24171743"]
[WhiteElo "2295"]
[BlackElo "2514"]
[Result "0-1"]
[Round "06"]
[TimeControl "180+1"]
[Date "2021.06.15"]
[WhiteClock "0:00:03"]
[BlackClock "0:01:36"]

1. d4 {[%clk 0:03:00]}  Nf6 {[%clk 0:02:59]} 2. Nf3 {[%clk 0:03:01]}  d5 {[%clk 0:02:56]} 3. Bf4 {[%clk 0:03:00]}  e6 {[%clk 0:02:55]} 4. e3 {[%clk 0:03:00]}  c5 {[%clk 0:02:55]} 5. Nbd2 {[%clk 0:02:59]}  Nc6 {[%clk 0:02:55]} 6. c3 {[%clk 0:02:56]}  cxd4 {[%clk 0:02:55]} 7. exd4 {[%clk 0:02:56]}  Nh5 {[%clk 0:02:55]} 8. Be3 {[%clk 0:02:48]}  Bd6 {[%clk 0:02:54]} 9. g3 {[%clk 0:02:48]}  O-O {[%clk 0:02:52]} 10. Ne5 {[%clk 0:02:41]}  g6 {[%clk 0:02:52]} 11. Nxc6 {[%clk 0:02:33]}  bxc6 {[%clk 0:02:51]} 12. Be2 {[%clk 0:02:33]}  Ng7 {[%clk 0:02:51]} 13. Bh6 {[%clk 0:02:02]}  Re8 {[%clk 0:02:50]} 14. Nb3 {[%clk 0:01:41]}  Nf5 {[%clk 0:02:49]} 15. Bc1 {[%clk 0:01:40]}  e5 {[%clk 0:02:34]} 16. dxe5 {[%clk 0:01:38]}  Bxe5 {[%clk 0:02:35]} 17. O-O {[%clk 0:01:37]}  Qf6 {[%clk 0:02:32]} 18. Nc5 {[%clk 0:01:30]}  Bd6 {[%clk 0:02:23]} 19. Nd3 {[%clk 0:01:30]}  h5 {[%clk 0:02:23]} 20. Bf4 {[%clk 0:01:24]}  h4 {[%clk 0:02:23]} 21. Qd2 {[%clk 0:01:13]}  Ba6 {[%clk 0:02:15]} 22. Rae1 {[%clk 0:01:08]}  Re4 {[%clk 0:02:03]} 23. Bxd6 {[%clk 0:00:59]}  Nxd6 {[%clk 0:01:57]} 24. Nc5 {[%clk 0:00:42]}  Rxe2 {[%clk 0:01:55]} 25. Rxe2 {[%clk 0:00:42]}  h3 {[%clk 0:01:42]} 26. Re3 {[%clk 0:00:24]}  Bxf1 {[%clk 0:01:40]} 27. Nd7 {[%clk 0:00:11]}  Qf5 {[%clk 0:01:38]} 28. Kxf1 {[%clk 0:00:03]}  Nc4 {[%clk 0:01:36]} 0-1


[Site "https://www.chess.com"]

[Event "Titled Tuesday Blitz June 15 2021"]
[White "Mickiewicz, Piotr"]
[Black "Krivonosov, Oleg"]
[WhiteFideId "1114891"]
[BlackFideId "11600349"]
[WhiteElo "2263"]
[BlackElo "2469"]
[Result "1-0"]
[Round "06"]
[TimeControl "180+1"]
[Date "2021.06.15"]
[WhiteClock "0:00:44"]
[BlackClock "0:00:18"]

1. Nf3 {[%clk 0:03:00]}  Nf6 {[%clk 0:02:56]} 2. g3 {[%clk 0:03:01]}  d5 {[%clk 0:02:55]} 3. Bg2 {[%clk 0:03:02]}  e6 {[%clk 0:02:55]} 4. O-O {[%clk 0:03:03]}  Be7 {[%clk 0:02:55]} 5. c4 {[%clk 0:03:01]}  O-O {[%clk 0:02:55]} 6. b3 {[%clk 0:02:46]}  b6 {[%clk 0:02:54]} 7. Bb2 {[%clk 0:02:45]}  Bb7 {[%clk 0:02:54]} 8. e3 {[%clk 0:02:37]}  c5 {[%clk 0:02:53]} 9. Qe2 {[%clk 0:02:36]}  Nc6 {[%clk 0:02:52]} 10. cxd5 {[%clk 0:02:23]}  Nxd5 {[%clk 0:02:51]} 11. d4 {[%clk 0:02:14]}  cxd4 {[%clk 0:02:46]} 12. Nxd4 {[%clk 0:02:15]}  Nxd4 {[%clk 0:02:45]} 13. Bxd4 {[%clk 0:02:15]}  Bf6 {[%clk 0:02:42]} 14. Rd1 {[%clk 0:02:06]}  Bxd4 {[%clk 0:02:40]} 15. Rxd4 {[%clk 0:02:07]}  Qe7 {[%clk 0:02:40]} 16. Nd2 {[%clk 0:02:01]}  Nc3 {[%clk 0:02:20]} 17. Qd3 {[%clk 0:01:55]}  Bxg2 {[%clk 0:02:19]} 18. Kxg2 {[%clk 0:01:55]}  Nd5 {[%clk 0:02:18]} 19. e4 {[%clk 0:01:46]}  Nf6 {[%clk 0:02:17]} 20. Nf3 {[%clk 0:01:26]}  e5 {[%clk 0:02:12]} 21. Rc4 {[%clk 0:01:17]}  b5 {[%clk 0:01:52]} 22. Rc6 {[%clk 0:01:17]}  a6 {[%clk 0:01:48]} 23. Rac1 {[%clk 0:01:14]}  h6 {[%clk 0:01:42]} 24. Rc7 {[%clk 0:01:11]}  Qa3 {[%clk 0:01:37]} 25. Nxe5 {[%clk 0:01:07]}  Qxa2 {[%clk 0:01:33]} 26. Nxf7 {[%clk 0:00:57]}  Rxf7 {[%clk 0:01:26]} 27. Rxf7 {[%clk 0:00:58]}  Kxf7 {[%clk 0:01:25]} 28. e5 {[%clk 0:00:59]}  Re8 {[%clk 0:00:33]} 29. exf6 {[%clk 0:00:57]}  Kxf6 {[%clk 0:00:31]} 30. Rc6+ {[%clk 0:00:50]}  Kf7 {[%clk 0:00:25]} 31. Qd5+ {[%clk 0:00:44]}  Kf8 {[%clk 0:00:18]} 32. Rc7 {[%clk 0:00:44]} 1-0


[Site "https://www.chess.com"]

[Event "Titled Tuesday Blitz June 15 2021"]
[White "Morefield, Jason"]
[Black "Eljanov, Pavel"]
[WhiteFideId "30920825"]
[BlackFideId "14102951"]
[WhiteElo "2171"]
[BlackElo "2602"]
[Result "0-1"]
[Round "06"]
[TimeControl "180+1"]
[Date "2021.06.15"]
[WhiteClock "0:00:46"]
[BlackClock "0:01:46"]

1. d4 {[%clk 0:03:00]}  Nf6 {[%clk 0:02:59]} 2. c4 {[%clk 0:03:00]}  e6 {[%clk 0:02:59]} 3. Nf3 {[%clk 0:03:00]}  b6 {[%clk 0:02:59]} 4. g3 {[%clk 0:03:00]}  Bb7 {[%clk 0:02:59]} 5. Bg2 {[%clk 0:03:00]}  Be7 {[%clk 0:03:00]} 6. O-O {[%clk 0:03:00]}  O-O {[%clk 0:03:00]} 7. Nc3 {[%clk 0:03:00]}  Ne4 {[%clk 0:03:00]} 8. Bd2 {[%clk 0:03:00]}  f5 {[%clk 0:02:59]} 9. d5 {[%clk 0:02:44]}  Bf6 {[%clk 0:02:56]} 10. Rc1 {[%clk 0:02:38]}  Na6 {[%clk 0:02:46]} 11. Ne1 {[%clk 0:02:19]}  Nac5 {[%clk 0:02:35]} 12. b4 {[%clk 0:01:59]}  Nxc3 {[%clk 0:02:29]} 13. Bxc3 {[%clk 0:01:59]}  Ne4 {[%clk 0:02:26]} 14. Ba1 {[%clk 0:01:28]}  a5 {[%clk 0:02:18]} 15. a3 {[%clk 0:01:23]}  Bxa1 {[%clk 0:02:15]} 16. Rxa1 {[%clk 0:01:19]}  Nc3 {[%clk 0:02:09]} 17. Qd3 {[%clk 0:01:07]}  axb4 {[%clk 0:02:09]} 18. Nc2 {[%clk 0:01:03]}  exd5 {[%clk 0:02:03]} 19. axb4 {[%clk 0:01:02]}  Qf6 {[%clk 0:01:53]} 20. Rxa8 {[%clk 0:00:59]}  Rxa8 {[%clk 0:01:52]} 21. cxd5 {[%clk 0:00:59]}  Ba6 {[%clk 0:01:50]} 22. Qe3 {[%clk 0:00:56]}  f4 {[%clk 0:01:46]} 23. gxf4 {[%clk 0:00:48]}  Nxe2+ {[%clk 0:01:46]} 24. Kh1 {[%clk 0:00:48]}  Nxf4 {[%clk 0:01:47]} 25. Be4 {[%clk 0:00:46]}  Bxf1 {[%clk 0:01:46]} 0-1


[Site "https://www.chess.com"]